Cogmind - Beta 13 @@@ ROGUE MODE // 2024.04.06 @ 18:26:54 Player: Baxter Result: Destroyed by G-47 Trooper with Particle Gun Performance ------------- Evolutions (0) 0 Regions Visited (2) 400 Robots Destroyed (17) 85 Value Destroyed (370) 370 Prototype IDs (0) 0 Alien Tech Used (0) 0 Bonus (60) 60 TOTAL SCORE: 915 Bonus ------- Follower Combat Kills 60 Cogmind --------- Core Integrity 0/250 Matter 300/300 Energy 200/250 System Corruption 0% Temperature Cool (51) Movement Rolling (125) Ox3 Location -10/Mines Parts ------- > --- POWER (1) -------- Ion Engine > --- PROPULSION (2) --- Wheel > --- UTILITY (2) ------ Large Storage Unit > --- WEAPON (2) ------- Heavy EM Pulse Gun Heavy EM Pulse Gun > --- INVENTORY (15) --- Ion Engine Wheel Large Matter Pod (150) Structural Scanner Seismic Detector Seismic Detector Light Armor Plating Light Armor Plating Heavy EM Pulse Gun Light Assault Rifle Light Assault Rifle Light Assault Rifle Light Assault Rifle Mining Claw Peak State ------------ > --- POWER ------------ Ion Engine > --- PROPULSION ------- Light Treads Compact Wheel > --- UTILITY ---------- Large Storage Unit Light Armor Plating > --- WEAPON ----------- Heavy EM Pulse Gun Heavy EM Pulse Gun > --- INVENTORY -------- Ion Engine Wheel Wheel Large Matter Pod Structural Scanner Seismic Detector Seismic Detector Light Armor Plating Light Armor Plating Light Assault Rifle Light Assault Rifle Light Assault Rifle Light Assault Rifle Mining Claw [Rating: 10] Favorites ----------- Power Ion Engine Engine Ion Engine Propulsion Light Treads Treads Light Treads Wheel Compact Wheel Utility Seismic Detector Device Seismic Detector Storage Large Storage Unit Protection Light Armor Plating Weapon Light Assault Rifle Energy Gun Heavy EM Pulse Gun Ballistic Gun Light Assault Rifle Slashing Weapon Mining Claw Build | -11 -10 -10 ------- Run | Yrd Mat Min Slots Evolved . | . . . Power . | . . . Propulsion . | . . . Utility . | . . . Weapon . | . . . Parts Attached 24 | 7 14 3 Power 2 | 1 1 . Engine 2 | 1 1 . Core . | . . . Reactor . | . . . Propulsion 4 | 2 1 1 Treads 2 | 1 1 . Leg . | . . . Wheel 2 | 1 . 1 Hover . | . . . Flight . | . . . Utility 8 | 2 4 2 Device 3 | 1 1 1 Storage 3 | 1 2 . Processor . | . . . Hackware . | . . . Protection 2 | . 1 1 Artifact . | . . . Weapon 10 | 2 8 . Energy Gun 2 | . 2 . Energy Cannon . | . . . Ballistic Gun 7 | 2 5 . Ballistic Cannon . | . . . Launcher . | . . . Special Weapon . | . . . Impact Weapon . | . . . Slashing Weapon 1 | . 1 . Piercing Weapon . | . . . Special Melee Weapon . | . . . Unidentified Prototypes . | . . . Parts Lost 3 | . . 3 Power . | . . . Propulsion 2 | . . 2 Utility 1 | . . 1 Weapon . | . . . Highest Loss Streak 2 | . . 2 To Critical Strikes . | . . . Average Slot Usage (%) 99 | . 99 99 Engine 14 | . 14 14 Treads 13 | . 14 13 Wheel 14 | . 14 14 Device 9 | . 11 4 Storage 14 | . 14 14 Protection 4 | . 2 9 Energy Gun 8 | . 2 28 Ballistic Gun 17 | . 23 . Slashing Weapon 1 | . 2 . Naked Turns . | . . . Heaviest Build 34 | 14 34 34 Greatest Support 20 | 20 20 16 Greatest Overweight (x) 3 | . 2 3 Average Overweight (x) . | . . 2 Largest Inventory Capacity 15 | 8 15 15 Average Capacity 11 | 7 11 15 Most Carried 15 | 7 15 15 Average Carried 10 | 4 10 14 Final Capacity 15 | 8 15 15 Final Carried 15 | 7 15 14 Class Distribution -------------------- 100% | Mutant Dominant Class ---------------- Mutant | -10/Materials Mutant | -10/Mines Resources | -11 -10 -10 ----------- Run | Yrd Mat Min Matter Collected 731 | 294 355 82 Remotely . | . . . Salvage Created 556 | 108 360 88 Parts 25 | 3 20 2 Haulers Intercepted 1 | . 1 . Recyclers Shooed 2 | 1 1 . Parts Field Recycled . | . . . Retrieved Matter . | . . . Parts Self-Destructed . | . . . Prevented . | . . . Kills | -11 -10 -10 ------- Run | Yrd Mat Min Combat Hostiles Destroyed 12 | . 10 2 Guns 12 | . 10 2 Classes Destroyed 7 | 2 4 1 Worker 1 | . . 1 Tunneler 1 | 1 . . Hauler 1 | . 1 . Recycler 1 | 1 . . Operator 1 | . 1 . Swarmer 4 | . 3 1 Grunt 8 | . 7 1 Best Kill Streak 3 | 2 3 1 Combat Bots Only 3 | . 3 1 Max Kills in Single Turn 1 | 1 1 1 Gunslinging . | . . . Exploded . | . . . Melee . | . . . Uniques/NPCs Destroyed . | . . . Combat | -11 -10 -10 -------- Run | Yrd Mat Min Hostile Shots Fired 98 | . 91 7 Missed 28 | . 27 1 Damage Taken 943 | . 860 83 Core 263 | . 218 45 Absorbed by Shields . | . . . Core Remaining (%) 100 | 100 . . Volleys Fired 63 | 6 51 6 Largest 2 | 2 2 2 Hottest 90 | 40 90 90 Shots Fired 126 | 12 102 12 Gun 126 | 12 102 12 Cannon . | . . . Launcher . | . . . Special . | . . . Kinetic 112 | 12 100 . Thermal . | . . . Explosive . | . . . Electromagnetic 14 | . 2 12 Robot Hit Streak 9 | 7 9 5 Robot Miss Streak 2 | 1 2 2 Penetration Max . | . . . Secondary Targets 3 | . 3 . Max Gunslinging Chain 1 | . 1 . Shots Hit Robots 88 | 10 71 7 Core Hits 31 | 3 25 3 Critical Kills . | . . . Critical Parts Destroyed 1 | . 1 . Critical Strikes 1 | . 1 . Destroy 1 | . 1 . Melee Attacks 1 | . 1 . Impact . | . . . Slashing 1 | . 1 . Piercing . | . . . Sneak Attacks . | . . . Combat Hostiles . | . . . Follow-up Attacks . | . . . Damage Inflicted 869 | 103 662 104 Guns 869 | 103 662 104 Cannons . | . . . Explosions . | . . . Melee . | . . . Ramming . | . . . Kinetic 744 | 103 641 . Thermal . | . . . Explosive . | . . . Electromagnetic 125 | . 21 104 Impact . | . . . Slashing . | . . . Piercing . | . . . Highest Corruption . | . . . Average Corruption . | . . . Corruption Purged . | . . . Corruption Blocked . | . . . Overload Shots . | . . . Overflow Damage . | . . . Projectiles . | . . . Explosions . | . . . Melee . | . . . Knockbacks . | . . . Impact . | . . . Kinetic . | . . . Secondary . | . . . Self-Inflicted Damage . | . . . Shots . | . . . Rammed . | . . . Targets Rammed . | . . . Kicked . | . . . Crushed . | . . . Highest Temperature 124 | . 124 78 Average Temperature 50 | . 54 30 Received Heat Transfer 423 | . 387 36 Siege Activations . | . . . Robots Corrupted . | . . . Combat Hostiles . | . . . Parts Fried 2 | . . 2 Impact Corruptions . | . . . Robots Melted . | . . . Combat Hostiles . | . . . Parts Melted . | . . . Heat Transferred . | . . . Parts Sabotaged . | . . . Parts Stolen . | . . . Parts Stripped . | . . . Power Chain Reactions . | . . . Alert | -11 -10 -10 ------- Run | Yrd Mat Min Peak Influence 108 | 10 108 103 Initial 22 | . 6 22 Average 37 | 3 35 51 Maximum Alert Level . | . . . Low Security (%) 100 | 100 100 100 Level 1 . | . . . Level 2 . | . . . Level 3 . | . . . Level 4 . | . . . Level 5 . | . . . High Security . | . . . Max Security . | . . . Squads Dispatched 2 | . 2 . Investigation . | . . . Extermination . | . . . Reinforcement 2 | . 2 . Assault . | . . . Garrison . | . . . Intercept . | . . . Searches Triggered . | . . . Construction Impeded . | . . . Haulers Reinforced . | . . . Active Scanning Responses . | . . . Cargo Convoy Interrupts . | . . . Stealth | -11 -10 -10 --------- Run | Yrd Mat Min Distress Signals 1 | . 1 . Communications Jammed . | . . . Distress Signals . | . . . Times Spotted 25 | . 20 5 Peak Tracking Total 4 | . 4 2 Tactical Retreats 3 | . 3 . Traps | -11 -10 -10 ------- Run | Yrd Mat Min Traps Triggered . | . . . Indirectly . | . . . Trap Hack Attempts . | . . . Triggered . | . . . Disarmed . | . . . Reprogrammed . | . . . Reused . | . . . Traps Extracted . | . . . Installed . | . . . Triggered . | . . . Machines | -11 -10 -10 ---------- Run | Yrd Mat Min Machines Disabled . | . . . Max in Single Turn . | . . . Machines Repaired . | . . . Machines Dismantled . | . . . Machines Sabotaged . | . . . Overloaded Fab Kills . | . . . Hacking | -11 -10 -10 --------- Run | Yrd Mat Min Machines Accessed 7 | . 7 . Terminals 7 | . 7 . Fabricators . | . . . Repair Stations . | . . . Recycling Units . | . . . Scanalyzers . | . . . Garrison Access . | . . . Total Hacks 18 | . 18 . Successful 9 | . 9 . Failed 8 | . 8 . Catastrophic 3 | . 3 . Database Lockouts 1 | . 1 . Manual 16 | . 16 . Terminals 18 | . 18 . Fabricators . | . . . Repair Stations . | . . . Recycling Units . | . . . Scanalyzers . | . . . Garrison Access . | . . . Terminal Hacks 3 | . 3 . Robot Analysis 1 | . 1 . Branch Access Points 1 | . 1 . Recall Reinforcements 1 | . 1 . Fabricator Hacks . | . . . Repair Station Hacks . | . . . Recycling Unit Hacks . | . . . Scanalyzer . | . . . Garrison Access Hacks . | . . . Unauthorized Hacks 6 | . 6 . Terminals 6 | . 6 . Botnet 6 | . 6 . Fabricators . | . . . Repair Stations . | . . . Recycling Units . | . . . Scanalyzers . | . . . Garrison Access . | . . . Data Cores Recovered . | . . . Used . | . . . Hacking Detections 7 | . 7 . Full Trace Events . | . . . Feedback Events . | . . . Feedback Blocked . | . . . Robot Schematics Acquired . | . . . Robots Built . | . . . Authchips . | . . . Time . | . . . Total Robot Build Rating . | . . . Part Schematics Acquired . | . . . Parts Built . | . . . Authchips . | . . . Time . | . . . Total Part Build Rating . | . . . Parts Repaired . | . . . Time . | . . . Parts Recycled . | . . . Recycled Matter . | . . . Retrieved Matter . | . . . Retrieved Components . | . . . Parts Scanalyzed . | . . . Part Schematics Acquired . | . . . Parts Damaged . | . . . Bothacking | -11 -10 -10 ------------ Run | Yrd Mat Min Used RIF Installer . | . . . Robots Hacked . | . . . Non-combat . | . . . Combat . | . . . Robot Hacks Applied . | . . . Relay Couplers Released . | . . . Fabnet Peak Effective % . | . . . Robots Rewired . | . . . Allies Hacked . | . . . Hacks Repelled . | . . . Allies | -11 -10 -10 -------- Run | Yrd Mat Min Total Allies 2 | . . 2 Largest Group 2 | . . 2 Highest-Rated Group 43 | . . 43 Highest-Rated Ally 31 | . . 31 Total Orders . | . . . Ally Attacks 14 | . . 14 Total Damage 273 | . . 273 Kills 2 | . . 2 Allies Corrupted . | . . . Allies Melted . | . . . Intel | -11 -10 -10 ------- Run | Yrd Mat Min Robot Analysis Total 1 | . 1 . Derelict Logs Recovered 1 | . . 1 Drone Launches . | . . . Drone Recoveries . | . . . Exploration | -11 -10 -10 ------------- Run | Yrd Mat Min Turns Passed 1979 | 138 1376 465 Spaces Moved 1106 | 67 693 346 Core 2 | 2 . . Treads 578 | 64 514 . Legs . | . . . Wheels 526 | 1 179 346 Hover . | . . . Flight . | . . . Fastest Speed 50 | 50 115 115 Average Speed 144 | 155 154 121 Slowest Speed 240 | 160 240 130 Overloaded Moves . | . . . Propulsion Burnouts . | . . . Robots Hopped . | . . . Cave-ins Triggered . | . . . Exploration Rate (%) 59 | 5 98 76 Regions Visited 2 Branch Regions 1 Pre-discovered Areas 2 | . . 2 Known Exits Taken 1 | . 1 . Unknown Exits Taken 1 | 1 . . Scrap Searched 1 | . . 1 Spaces Dug 1 | . 1 . Terrain Destroyed 1 | . 1 . Melee 1 | . 1 . Projectile . | . . . AOE . | . . . Terrain Rammed . | . . . Walls Destroyed . | . . . Machines Disabled . | . . . Actions | -11 -10 -10 --------- Run | Yrd Mat Min Total 1380 | 86 914 380 Wait 149 | . 124 25 Move 1104 | 66 692 346 Hop . | . . . Pick Up 23 | 7 16 . Fast Attach 9 | 7 2 . Attach 1 | . . 1 Detach . | . . . Swap 14 | . 12 2 Drop 16 | . 16 . Fire 63 | 6 51 6 Melee 1 | . 1 . Ram . | . . . Kick . | . . . Crush . | . . . Escape Stasis . | . . . Rewire . | . . . Trap . | . . . Miscellaneous . | . . . Route ------- -11/Scrapyard -10/Materials (discovered 4 exits: [*Mat x3] / *Min) -10/Mines (discovered 2 exits: [*Mat] / [*Exi]) History --------- Turn | Location | Event 57 | -11/Scrapyard | Discovered new exit (range 16) 139 | -11/Scrapyard | Entered Materials 311 | -10/Materials | Build established: Mutant 483 | -10/Materials | Discovered new exit (range 10) 971 | -10/Materials | Discovered new exit (range 3) 1303 | -10/Materials | Core integrity fell below 50% 1375 | -10/Materials | Core integrity fell below 20% 1419 | -10/Materials | Discovered new exit (range 5) 1454 | -10/Materials | Central database locked down 1454 | -10/Materials | Identified exit to Mines 1515 | -10/Materials | Entered Mines 1553 | -10/Mines | Learned location of Storage (-7) 1557 | -10/Mines | Learned location of Zion (-6) 1606 | -10/Mines | Met a Derelict bent on vengeance 1629 | -10/Mines | Discovered new exit (range 10) 1801 | -10/Mines | Deemed a non-threat by the Exiles lab entrance 1802 | -10/Mines | Discovered new exit (range 5) 1980 | -10/Mines | Destroyed by G-47 Trooper with Particle Gun Last Messages --------------- 01684_ Acquired 44 matter. 01710_ A pair of derelicts emerge from the shadows: "We're, um, lost. You wouldn't happen to know the way out of here, would you?" 01750_ G-47 Trooper heat short circuits Imp. Heat Sink. 01754_ G-47 Trooper critical meltdown. 01769_ K-01 Serf collects debris. 01781_ Sml. Matter Pod fried. 01781_ K-01 Serf destroyed. 01801_ "No threat detected, you may enter." 01802_ EXIT=FOUND 01828_ Searching scrap... 01828_ Found Targeting Computer. 01828_ Found Structural Scanner. 01828_ Found Sml. Matter Pod. 01828_ Found 20 Matter. 01967_ G-34 Mercenary destroyed. 01970_ Lgt. Treads destroyed. 01978_ Lgt. Armor Plating destroyed. Map ----- +----------------------------------------------------+ | # #### ???????????????????????????????? | | #??????????????????????????????????????? | | ##### #??????????????????????????????????????? | | ###### #??????????????????????????????????????? | | ## #??????????????????????????????????????? | | # #??????????????????????????????????????? | | #?????????????????#????????????????????? | | ##??????????????? #????????????????????? | | #####???#???#### #????????????????????? | | ## ### #??# #????????????????????? | | #### ### ?????????????????????? | | ## #### ## ## ?????????????????????? | | ?## ## ### # #???????????????????????? | | ??## #????????????????????????? | | ???## #????????????????????????? | | ????# ##### #????????????????????????? | | ????# """ ##### #????????????????????????? | | ????# """ #?#????????????????????????? | | ????## """ ##### #??????????????????????????? | | ?????## ##???# #####??????????????????????? | | ??????## ####????# #??????????????????????? | | ????##### #???????# #??????????????????????? | | ???## ### #???????##### #??????????????????????? | | ???# ## #???????????#z #??????????????????????? | | ??## ## #???????????# #??????????????????????? | | ### ## #???????????# @#??????????????????????? | | ## #???????????# g#####??????????????????? | | # #???????????# *!%#??????????????????? | | # #???????????#####% #??????????????????? | | # #???????????????# #??????????????????? | | ## #???????????????# #??????????????????? | | ### ##!!#???????????????# #??????????????????? | | ??## ##%!#???????????????# #??????????????????? | | ???# #???????????????# #??????????????????? | | ???# ## ##??????????????? ??????????????????? | | ???##### #???????????????? ??????????????????? | | #??????# #???????????????? ""??????????????????? | | #??????# #???????????????? ""??????????????????? | | #??????####???????????????? """?????????????????? | | ??????????????????????????? ????????????????????? | | ???????????????????????????##????????????????????? | | ?????????????????????????????????????????????????? | | ?????????????????????????????????????????????????? | | ?????????????????????????????????????????????????? | | ?????????????????????????????????????????????????? | | ?????????????????????????????????????????????????? | | | | | | | | | +----------------------------------------------------+ Best States ------------- Heat Dissipation 25 Energy Generation 10 Energy Capacity 250 Matter Stores 300 Matter Capacity 300 Sight Range 16 Terrain Scan Density 10 Armor Coverage 150 Evasion (%) 40 Recoil Reduction 1 Item Schematics ----------------- None Robot Schematics ------------------ None Fabricated ------------ Nothing Alien Tech Used ----------------- None Achievements -------------- None Challenges ------------ None Game ------ Seed TerrabombMatterSlayer Manual? 0 Play Time 00:13:15 Cumulative 83.9 hours Start 2024.04.06 @ 18:15:31 End 2024.04.06 @ 18:26:54 Sessions 1 Manual Loads 0 Difficulty Rogue Special Mode None Game No. 86 Rogue 86 Adventurer 0 Explorer 0 Win Type - Total 1 Types 1/0/0/0/0/0/0/0/0 Lore% 38 Gallery% 48 Achievement% 37 Wizard Run 0 Options --------- Layout 1 ASCII 0 Keyboard 0 Movement Numpad Keybinds 0 Fullscreen 2 Font 24/X11 Map View 50x35 Zoom Use 0% Tactical HUD 1 Map Filters NONE Filters NONE Steam 0 RUN: 3e82640b-5335-4615-80b1-37ebc0a1641b